Workbook

Sheet Sheet1
A1: 2022年广州地区医疗机构病人欠费补助经费审核情况统计表 (2021.12-2022.11)
A2: 序号 | B2: 年龄 | C2: 性别 | D2: 诊断/病种 | E2: 救助医疗机构 | F2: 患者总费用 | G2: 申请金额 | H2: 核定金额 | I2: 核补金额(基金实际支付金额）
A3: 1 | B3: 57岁 | C3: 女 | D3: 胸壁挫伤、全身多处损伤 | E3: 番禺区第七人民医院 | F3: 783.03 | G3: 783.03 | H3: 783.03 | I3: =H3*0.98 -> 767.37
A4: 2 | B4: 26岁 | C4: 女 | D4: 输卵管间质部妊娠 | E4: 番禺区第七人民医院 | F4: 11,930.47 | G4: =F4-4500 -> 7,430.47 | H4: =G4-4500 -> 2,930.47 | I4: =H4*0.98 -> 2,871.86
A5: 3 | B5: 44岁 | C5: 男 | D5: 急性脑梗死 | E5: 番禺区第七人民医院 | F5: 922.13 | G5: 422.13 | H5: 422.13 | I5: 413.69
A6: 4 | B6: 69岁 | C6: 男 | D6: 脑梗死 | E6: 番禺区第七人民医院 | F6: 4,267.99 | G6: 2,351.10 | H6: 2,151.65 | I6: 2,108.62
A7: 5 | B7: 36岁 | C7: 男 | D7: 肾和输尿管结石梗阻伴肾积水、肾绞痛 | E7: 番禺区第七人民医院 | F7: 2,993.15 | G7: 2,236.69 | H7: 2,236.21 | I7: 2,191.49
A8: 6 | B8: 45岁 | C8: 男 | D8: 肺炎、2型糖尿病、上消化道出血 | E8: 番禺区第七人民医院 | F8: 3,610.69 | G8: 2,198.04 | H8: 2,168.61 | I8: 2,125.24
A9: 7 | B9: 59岁 | C9: 男 | D9: 急性ST段抬高型广泛前壁心肌梗死;冠状动脉粥样硬化性心脏病 | E9: 番禺区中心医院 | F9: 16,975.99 | G9: 16,518.15 | H9: 16,395.21 | I9: =H9*0.98 -> 16,067.31
A10: 8 | B10: 45岁 | C10: 男 | D10: 消化道出血，小肠出血;幽门溃疡伴出血;肺部感染;重度贫血;胸腔积液 | E10: 番禺区中心医院 | F10: 32,399.87 | G10: 13,557.88 | H10: 13,129.96 | I10: 12,867.36
A11: 9 | B11: 50岁 | C11: 男 | D11: 急性脑血管病，基底节区出血;高血压;肺部感染 | E11: 番禺区中心医院 | F11: 102,677.47 | G11: 12,776.83 | H11: 11,601.33 | I11: 11,369.30
A12: 10 | B12: 37岁 | C12: 女 | D12: 肺恶性肿瘤;阻塞性肺炎低蛋白血症; | E12: 番禺区中心医院 | F12: 12,035.52 | G12: 6,245.42 | H12: 6,059.77 | I12: 5,938.57
A13: 11 | B13: 58岁 | C13: 男 | D13: 急性左心衰竭;冠状动脉粥样硬化性心脏病;胸腔积液;2型糖尿病;肺水肿 | E13: 番禺区中心医院 | F13: 8,335.74 | G13: 8,148.02 | H13: 8,026.99 | I13: 7,866.45
A14: 12 | B14: 30岁 | C14: 女 | D14: 感染性休克;急性胃肠炎;肺部感染;发热;肝损害; | E14: 番禺区中心医院 | F14: 35,283.24 | G14: 14,603.45 | H14: 14,224.09 | I14: 13,939.61
A15: 13 | B15: 57岁 | C15: 男 | D15: 消化道出血，乙型肝炎肝硬化失代偿期伴食管胃底静脉破裂出血;陈旧性肺结核;低蛋白血症;重度贫血 | E15: 番禺区中心医院 | F15: 13,250.86 | G15: 9,370.63 | H15: 8,874.70 | I15: 8,697.21
A16: 14 | B16: 63岁 | C16: 男 | D16: 急性脑血管疾病，基底节区出血;脑疝;高血压;颅骨肿瘤;肝恶性肿瘤;肺转移瘤;肝硬化失代偿期伴食管静脉曲张 | E16: 番禺区中心医院 | F16: 699.25 | G16: 699.25 | H16: 571.25 | I16: 559.83
A17: 15 | B17: 25岁 | C17: 男 | D17: 严重多发创伤：急性创伤性蛛网膜下腔出血;创伤性多部位硬膜下血肿;胸骨骨折;头皮血肿;颞骨骨折;顶骨骨折 | E17: 番禺区中心医院 | F17: 4,314.43 | G17: 4,314.43 | H17: 3,778.63 | I17: 3,703.06
A18: 16 | B18: 51岁 | C18: 男 | D18: 胸闷;心力衰竭;肾功能不全;肺部感染 | E18: 番禺区中心医院 | F18: 1,574.24 | G18: 574.24 | H18: 288.33 | I18: 282.56
A19: 17 | B19: 42岁 | C19: 男 | D19: 胸痛;不稳定性心绞痛;冠状动脉粥样硬化;高血压 | E19: 番禺区中心医院 | F19: 12,042.92 | G19: 7,201.65 | H19: 6,657.56 | I19: 6,524.41
A20: 18 | B20: 48岁 | C20: 男 | D20: 肱骨远端骨折;肱桡关节脱位;肺挫裂伤;多发性肋骨骨折;肌腱损伤 | E20: 番禺区中心医院 | F20: 63,353.61 | G20: 3,508.35 | H20: 3,375.87 | I20: 3,308.35
A21: 19 | B21: 41岁 | C21: 男 | D21: 纵隔恶性肿瘤;胸腔积液;为肿瘤化学治疗疗程 | E21: 番禺区中心医院 | F21: 10,328.61 | G21: =7220.27-1100 -> 6,120.27 | H21: 5,208.59 | I21: 5,104.42
A22: 20 | B22: 50岁 | C22: 男 | D22: 额颞叶出血;胃穿孔;急性腹膜炎;肝硬化失代偿期;腹水;凝血功能障碍 | E22: 番禺区中心医院 | F22: 100,826.44 | G22: 60,161.31 | H22: 58,321.57 | I22: 57,155.14
A23: 21 | B23: 37岁 | C23: 男 | D23: 杀鼠剂中毒;多发骨折;抑郁性精神病;2型糖尿病足病;低蛋白血症 | E23: 番禺区中心医院 | F23: 73,041.33 | G23: 14,258.55 | H23: 13,923.89 | I23: 13,645.41
A24: 22 | B24: 49岁 | C24: 男 | D24: 心包积液;梗阻性休克;心脏压塞;I型呼吸衰竭 | E24: 番禺区中心医院 | F24: 8,100.86 | G24: 8,100.86 | H24: 7,531.08 | I24: 7,380.46
A25: 23 | B25: 31岁 | C25: 男 | D25: 急性酒精中毒;电解质紊乱;肺炎;癫痫 | E25: 番禺区中心医院 | F25: 3,038.85 | G25: 3,038.85 | H25: 2,872.65 | I25: 2,815.20
A26: 24 | B26: 51岁 | C26: 男 | D26: 短暂性大脑缺血性发作 | E26: 番禺区中心医院 | F26: 1,903.81 | G26: 1,903.81 | H26: 1,460.57 | I26: 1,431.36
A27: 25 | B27: 74岁 | C27: 男 | D27: 急性心肌梗死;心源性休克;消化道出血;心力衰竭;心房颤动 | E27: 番禺区中心医院 | F27: 7,478.96 | G27: 7,278.96 | H27: 6,664.82 | I27: 6,531.52
A28: 26 | B28: 73岁 | C28: 男 | D28: 急性脑卒中;消化道出血;高尿酸血症 | E28: 番禺区中心医院 | F28: 2,599.93 | G28: 599.93 | H28: 48.53 | I28: 47.56
A29: 27 | B29: 21岁 | C29: 女 | D29: 腹痛;腹腔感染;宫腔积液;中度贫血;低蛋白血症;产后抑郁症 | E29: 番禺区中心医院 | F29: 18,953.43 | G29: 17,953.43 | H29: 4,128.48 | I29: 4,045.91
A30: 28 | B30: 69岁 | C30: 男 | D30: 咯血，肺炎;慢性心力衰竭;缺血性心肌病 | E30: 番禺区中心医院 | F30: 17,833.97 | G30: 10,141.62 | H30: 9,378.86 | I30: 9,191.28
A31: 29 | B31: 90岁 | C31: 男 | D31: 头晕;肺栓塞;慢性阻塞性肺病;高血压 | E31: 番禺区中心医院 | F31: 3,011.08 | G31: 3,011.08 | H31: 2,461.58 | I31: 2,412.35
A32: 30 | B32: 83岁 | C32: 男 | D32: 肺性脑病;慢性阻塞性肺疾病急性加重;Ⅱ型呼吸衰竭;肺部感染;;直肠癌;支气管哮喘 | E32: 番禺区中心医院 | F32: 15,913.96 | G32: 7,688.70 | H32: 7,357.20 | I32: 7,210.06
A33: 31 | B33: 59岁 | C33: 女 | D33: 急性非ST段抬高型心肌梗死;高血压;肝血管瘤;肝囊肿;肾结石;轻度贫血 | E33: 番禺区中心医院 | F33: 21,519.18 | G33: 18,519.18 | H33: 15,717.08 | I33: 15,402.74
A34: 32 | B34: 50岁 | C34: 女 | D34: 创伤：肋骨骨折;血气胸;肺挫裂伤;肺部感染;完全性右束支传导阻滞;锁骨骨折;糖尿病 | E34: 番禺区中心医院 | F34: 51,127.50 | G34: 4,730.38 | H34: 4,431.22 | I34: 4,342.60
A35: 33 | B35: 46岁 | C35: 男 | D35: 白血病;重度贫血;急性上消化道出血;肺部感染 | E35: 番禺区中心医院 | F35: 14,193.95 | G35: 9,829.11 | H35: 9445.15 | I35: 9,256.25
A36: 34 | B36: 50岁 | C36: 男 | D36: 原发性肝细胞癌;肝硬化失代偿期;肝性脑病 | E36: 番禺区中心医院 | F36: 26,236.60 | G36: 11,693.83 | H36: 8,112.97 | I36: 7,950.71
A37: 35 | B37: 49岁 | C37: 男 | D37: 急性胆囊炎;心房颤动 ;心功能不全;高钾血症;肝功能异常;结肠憩室炎 | E37: 番禺区中心医院 | F37: 2,001.58 | G37: 801.58 | H37: 678.50 | I37: 664.93
A38: 36 | B38: 38岁 | C38: 女 | D38: 子宫瘢痕妊娠;重度贫血;失血性休克;女性盆腔粘连;腹腔粘连;避孕(经腹输卵管绝育术);脱髓鞘性脑病 | E38: 番禺区中心医院 | F38: 53,046.18 | G38: 52,046.18 | H38: 48,267.17 | I38: 47,301.83
A39: 37 | B39: 55岁 | C39: 男 | D39: 多发性脑梗死;颈内动脉闭塞;多发性脑动脉狭窄;高血压;2型糖尿病 | E39: 番禺区中心医院 | F39: 2,667.34 | G39: 2,667.34 | H39: 2,498.77 | I39: 2,448.79
A40: 38 | B40: 43岁 | C40: 男 | D40: 脑梗死;下肢深静脉血栓形成;大脑中动脉狭窄;颈动脉斑块;颈动脉狭窄 | E40: 番禺区中心医院 | F40: 9,276.18 | G40: 4,741.19 | H40: 3,323.07 | I40: 3,256.61
A41: 39 | B41: 62岁 | C41: 男 | D41: 创伤性脾破裂;胸椎退行性病变;前列腺钙化;低蛋白血症;慢性HBV携带 | E41: 番禺区中心医院 | F41: 23,144.61 | G41: 16,860.08 | H41: 13,805.41 | I41: 13,529.30
A42: 40 | B42: 59岁 | C42: 男 | D42: 急性脑血管病：脑内出血;脑水肿;高血压;肺部感染;脑梗死个人史 | E42: 番禺区中心医院 | F42: 6,998.92 | G42: 3,998.92 | H42: 3,702.47 | I42: 3,628.42
A43: 41 | B43: 67岁 | C43: 男 | D43: 趾骨开放性骨折;下肢撕脱伤 | E43: 番禺区中心医院 | F43: 11,483.86 | G43: 6,786.57 | H43: 3,704.65 | I43: 3,630.56
A44: 42 | B44: 50岁 | C44: 男 | D44: 食管黏膜损伤 | E44: 番禺区中心医院 | F44: 5,067.97 | G44: 3,067.97 | H44: 2,409.37 | I44: 2,361.18
A45: 43 | B45: 57岁 | C45: 男 | D45: 基底节区出血;多发腔隙性脑梗死;大脑后动脉狭窄 | E45: 番禺区中心医院 | F45: 11,175.45 | G45: 5,881.46 | H45: 5,148.23 | I45: 5,045.27
A46: 44 | B46: 43岁 | C46: 男 | D46: 胫腓骨干骨折;距骨骨折;肺部感染 | E46: 番禺区中心医院 | F46: 2,164.28 | G46: 1,164.28 | H46: 563.04 | I46: 551.78
A47: 45 | B47: 37岁 | C47: 男 | D47: 腹痛;急性胃炎 | E47: 番禺区中心医院 | F47: 282.11 | G47: 282.11 | H47: 257.17 | I47: 252.03
A48: 46 | B48: 37岁 | C48: 男 | D48: 前臂开放性损伤;前臂水平的桡动脉损伤;前臂水平的多处肌肉和肌腱损伤;前臂水平的桡神经损伤;失血性休克 | E48: 番禺区中心医院 | F48: 57,586.98 | G48: 34,322.06 | H48: 24,766.57 | I48: 24,271.24
A49: 47 | B49: 41岁 | C49: 女 | D49: 脑震荡;头面部皮肤擦伤;下肢损伤;高血压;肾结石;女性盆腔积液 | E49: 番禺区中心医院 | F49: 1,462.04 | G49: 889.31 | H49: 836.22 | I49: 819.50
A50: 48 | B50: 66岁 | C50: 女 | D50: 阿-斯综合征;三度房室传导阻滞;心源性休克;心包积液;室性逸搏 | E50: 番禺区中心医院 | F50: 31,183.48 | G50: 31,183.48 | H50: 30,649.71 | I50: 30,036.72
A51: 49 | B51: 73岁 | C51: 男 | D51: 不稳定性心绞痛;冠状动脉粥样硬化性心脏病;急性左心衰竭;阵发性心房颤动;二尖瓣返流;高血压病3级(极高危);2型糖尿病 | E51: 番禺区中心医院 | F51: 39,285.86 | G51: 2,707.02 | H51: 2,703.66 | I51: 2,649.59
A52: 50 | B52: 66岁 | C52: 男 | D52: 吞咽困难;舌恶性肿瘤;唇恶性肿瘤 | E52: 番禺区中心医院 | F52: 7,531.06 | G52: 2,985.10 | H52: 2,414.94 | I52: 2,366.64
A53: 51 | B53: 39岁 | C53: 男 | D53: 急性脑血管病：硬膜下出血;脑疝;蛛网膜下腔出血;颅骨骨折;肺部感染;脑心综合征;头皮血肿;肝硬化失代偿期;消化道出血 | E53: 番禺区中心医院 | F53: 71,618.35 | G53: 57,589.90 | H53: 55,537.54 | I53: 54,426.79
A54: 52 | B54: 51岁 | C54: 男 | D54: 急性脑血管病：基底节区出血;肺炎杆菌肺炎;慢性肾衰竭;肾结石;高血压病 | E54: 番禺区中心医院 | F54: 50,830.81 | G54: 18,803.73 | H54: 18,474.32 | I54: 18,104.83
A55: 53 | B55: 33岁 | C55: 男 | D55: 腹痛;腹腔感染;肾炎综合征;肾功能不全;肾囊肿 | E55: 番禺区中心医院 | F55: 6,726.60 | G55: 6,015.40 | H55: 5,872.32 | I55: 5,754.87
A56: 54 | B56: 29岁 | C56: 男 | D56: 腹痛：肾结石;肾输尿管结石伴肾积水;泌尿系感染;输尿管狭窄 | E56: 番禺区中心医院 | F56: 21,759.24 | G56: 1,772.98 | H56: 1,718.76 | I56: 1,684.38
A57: 55 | B57: 29岁 | C57: 男 | D57: 肾出血;肾结石;输尿管支架留置;泌尿系感染;输尿管结石 | E57: 番禺区中心医院 | F57: 5,062.44 | G57: 2,743.00 | H57: 2,624.40 | I57: 2,571.91
A58: 56 | B58: 42岁 | C58: 男 | D58: 慢性肾衰竭;高血压病3级(极高危) | E58: 番禺区中心医院 | F58: 10,260.17 | G58: 3,720.16 | H58: 3,692.16 | I58: 3,618.32
A59: 57 | B59: 30岁 | C59: 男 | D59: 面部裂伤;休克 | E59: 番禺区中心医院 | F59: 3,588.22 | G59: 1,188.22 | H59: 1,188.22 | I59: 1,164.46
A60: 58 | B60: 47岁 | C60: 男 | D60: 颅内损伤;脑挫伤;创伤性蛛网膜下腔出血;创伤性顶部硬膜外血肿;创伤性颞部硬膜下血肿;肋骨骨折;顶骨骨折 | E60: 番禺区中心医院 | F60: 135,056.35 | G60: 36,241.81 | H60: 35,844.76 | I60: 35,127.86
A61: 59 | B61: 55岁 | C61: 男 | D61: 前臂开放性损伤;前臂水平的桡神经损伤;肌腱断伤;肺结节;肺部感染 | E61: 番禺区中心医院 | F61: 31,219.76 | G61: 24,588.57 | H61: 19,642.99 | I61: 19,250.13
A62: 60 | B62: 10月 | C62: 男 | D62: 躯干烧伤10-19%(二度);肩和上肢(除外腕和手)烧伤<10%(二度) | E62: 番禺区中心医院 | F62: 9,382.70 | G62: 9,382.70 | H62: 8,251.00 | I62: 8,085.98
A63: 61 | B63: 59岁 | C63: 男 | D63: 不稳定性心绞痛;冠状动脉粥样硬化性心脏病;慢性肾脏病5期 | E63: 番禺区中心医院 | F63: 24,311.58 | G63: 4,426.32 | H63: 4,404.40 | I63: 4,316.31
A64: 62 | B64: 56岁 | C64: 男 | D64: 腹痛：急性胆囊炎伴胆囊结石;肺部感染;胸椎退行性病变 | E64: 番禺区中心医院 | F64: 4,327.03 | G64: 4,227.03 | H64: 4,177.09 | I64: 4,093.55
A65: 63 | B65: 31岁 | C65: 男 | D65: 高血压病3级(极高危);鼻出血 | E65: 番禺区中心医院 | F65: 6,422.66 | G65: 2,622.88 | H65: 2,487.92 | I65: 2,438.16
A66: 64 | B66: 41岁 | C66: 女 | D66: 重症肌无力危象;肺部感染;电解质紊乱 | E66: 番禺区中心医院 | F66: 110,502.57 | G66: 3,787.30 | H66: 2,884.60 | I66: 2,826.91
A67: 65 | B67: 61岁 | C67: 男 | D67: 急性左心衰竭;冠状动脉粥样硬化性心脏病;频发性室性期前收缩;一度房室传导阻滞;肺动脉高压 | E67: 番禺区中心医院 | F67: 30,536.51 | G67: 3,699.44 | H67: 3,374.89 | I67: 3,307.39
A68: 66 | B68: 31岁 | C68: 男 | D68: 腹痛：急性腹膜炎;腹膜后淋巴结肿大;肺部感染 | E68: 番禺区中心医院 | F68: 6,637.09 | G68: 2,160.44 | H68: 1,846.74 | I68: 1,809.81
A69: 67 | B69: 30岁 | C69: 女 | D69: 急性胃肠炎;心血管性神经官能症 | E69: 番禺区中心医院 | F69: 2,596.64 | G69: 2,062.34 | H69: 1,998.06 | I69: 1,958.10
A70: 68 | B70: 31岁 | C70: 男 | D70: 急性胃肠炎;糖尿病酮症 | E70: 番禺区中心医院 | F70: 4,897.38 | G70: 4,403.85 | H70: 4,119.03 | I70: 4,036.65
A71: 69 | B71: 89岁 | C71: 女 | D71: 肺性脑病;Ⅱ型呼吸衰竭;心功能不全;肺部感染;高血压 | E71: 番禺区中心医院 | F71: 1,499.08 | G71: 1,499.08 | H71: 1,216.17 | I71: 1,191.85
A72: 70 | B72: 33岁 | C72: 女 | D72: 输尿管结石 | E72: 番禺区中心医院 | F72: 1,828.83 | G72: 1,528.83 | H72: 1,308.22 | I72: 1,282.06
A73: 71 | B73: 38岁 | C73: 男 | D73: 单纯腓骨骨折;踝关节骨折;糖尿病 | E73: 番禺区中心医院 | F73: 38,812.64 | G73: 1,082.79 | H73: 118.07 | I73: =H73*0.98 -> 115.71
A74: 72 | B74: 56岁 | C74: 女 | D74: 多个部位烧伤10-19%，三度面积<10%;乳腺恶性肿瘤 | E74: 番禺区中心医院 | F74: 4,887.76 | G74: 1,409.30 | H74: 92.72 | I74: 90.87
A75: 73 | B75: 48岁 | C75: 男 | D75: 心脏停搏复苏成功;肾功能不全;高血压;心律失常;主动脉夹层形成 | E75: 番禺区中心医院 | F75: 825.29 | G75: 325.29 | H75: 204.55 | I75: 200.46
A76: 74 | B76: 47岁 | C76: 男 | D76: 急性脑血管疾病：大脑中动脉栓塞引起的脑梗死;高血压;心房颤动 | E76: 番禺区中心医院 | F76: 84,431.25 | G76: 61,056.85 | H76: 60,125.56 | I76: 58,923.05
A77: 75 | B77: 47岁 | C77: 男 | D77: 颅内肿瘤;脑疝;颅内出血;肺部感染;鼻出血 | E77: 番禺区中心医院 | F77: 38,316.03 | G77: 27,816.03 | H77: 27,048.95 | I77: 26,507.97
A78: 76 | B78: 32岁 | C78: 男 | D78: 急性弥漫性腹膜炎;糖尿病酮症酸中毒;肝脓肿 | E78: 番禺区中心医院 | F78: 7,118.56 | G78: 6,118.56 | H78: 5,744.25 | I78: 5,629.37
A79: 77 | B79: 17岁 | C79: 女 | D79: 农药中毒 | E79: 番禺区中心医院 | F79: 5,579.12 | G79: 5,579.12 | H79: 5,319.61 | I79: 5,213.22
A80: 78 | B80: 40岁 | C80: 男 | D80: 糖尿病酮症酸中毒;糖尿病胃肠道自主神经病变 | E80: 番禺区中心医院 | F80: 6,885.01 | G80: 4,078.44 | H80: 3,984.28 | I80: 3,904.59
A81: 79 | B81: 58岁 | C81: 男 | D81: 肱骨颈骨折;高血压 | E81: 番禺区中心医院 | F81: 27,410.70 | G81: 1,654.15 | H81: 1,191.27 | I81: 1,167.44
A82: 80 | B82: 80岁 | C82: 男 | D82: 慢性阻塞性肺疾病急性加重;冠状动脉粥样硬化性心脏病;糖尿病 | E82: 番禺区中心医院 | F82: 1,442.02 | G82: 331.26 | H82: 311.26 | I82: 305.03
A83: 81 | B83: 45岁 | C83: 女 | D83: 慢性肾脏病5期，肾性贫血，慢性心力衰竭 | E83: 番禺区中心医院 | F83: 4,352.67 | G83: 3,352.67 | H83: 3,245.22 | I83: 3,180.32
A84: 82 | B84: 27岁 | C84: 女 | D84: 葡萄胎 | E84: 番禺区中心医院 | F84: 4,996.27 | G84: 996.27 | H84: 783.87 | I84: 768.19
A85: 83 | B85: 25岁 | C85: 男 | D85: 精神障碍，中枢神经系统感染 | E85: 番禺区中心医院 | F85: 2,174.69 | G85: 2,174.69 | H85: 2,047.97 | I85: 2,007.01
A86: 84 | B86: 100岁 | C86: 女 | D86: 股骨粗隆间骨折;心功能不全;多发腔隙性脑梗死;下肢动脉硬化闭塞症 | E86: 番禺区中心医院 | F86: 34,460.03 | G86: 31,237.48 | H86: 31,237.48 | I86: 30,612.73
A87: 85 | B87: 64岁 | C87: 男 | D87: 失血性休克;创伤性肱动脉损伤;静脉断裂;上臂水平的正中神经损伤;肌皮神经损伤;创伤性肱二头肌断裂 | E87: 番禺区中心医院 | F87: 47,953.37 | G87: 30,404.32 | H87: 30,404.32 | I87: 29,796.23
A88: 86 | B88: 28岁 | C88: 男 | D88: 脓毒性休克;糖尿病酮症 | E88: 番禺区中心医院 | F88: 21,305.86 | G88: 19,211.03 | H88: 17,810.08 | I88: 17,453.88
A89: 87 | B89: 31岁 | C89: 男 | D89: 开放性手外伤;指神经损伤;动脉断裂;异物存留 | E89: 番禺区中心医院 | F89: 18,760.56 | G89: 7,940.44 | H89: 7,940.44 | I89: 7,781.63
A90: 88 | B90: 26岁 | C90: 女 | D90: 药物过量; 抑郁症 ;双相情感障碍 | E90: 番禺区中心医院 | F90: 8,823.51 | G90: 7,823.51 | H90: 7,823.51 | I90: 7,667.04
A91: 89 | B91: 51岁 | C91: 男 | D91: 丘脑出血;高血压 | E91: 番禺区中心医院 | F91: 10,249.50 | G91: 7,068.92 | H91: 7,068.92 | I91: 6,927.54
A92: 90 | B92: 51岁 | C92: 男 | D92: 动脉断裂;肌腱损伤;指骨骨折;开放性手外伤 | E92: 番禺区中心医院 | F92: 11,035.80 | G92: 3,245.47 | H92: 3,245.47 | I92: 3,180.56
A93: 91 | B93: 46岁 | C93: 女 | D93: 子宫内膜单纯性增生;子宫内膜息肉;子宫平滑肌瘤;中度贫血 | E93: 番禺区中心医院 | F93: 3,162.87 | G93: 3,162.87 | H93: 3,162.87 | I93: 3,099.61
A94: 92 | B94: 57岁 | C94: 男 | D94: 垂体瘤;晕厥 | E94: 番禺区中心医院 | F94: 2,630.57 | G94: 2,630.57 | H94: 2,055.29 | I94: 2,014.18
A95: 93 | B95: 42岁 | C95: 男 | D95: 乙状结肠穿孔;急性弥漫性腹膜炎;感染性休克 | E95: 番禺区中心医院 | F95: 32,197.55 | G95: 32,197.55 | H95: 30,326.87 | I95: 29,720.33
A96: 94 | B96: 25岁 | C96: 男 | D96: 多部位脑挫裂伤;创伤性多部位硬膜外血肿;创伤性蛛网膜下腔出血;颅骨骨折;颧弓骨折;肺挫裂伤 | E96: 番禺区中心医院 | F96: 2,675.65 | G96: 2,675.65 | H96: 2,359.56 | I96: 2,312.37
A97: 95 | B97: 44岁 | C97: 女 | D97: 肺炎;间质性肺炎;支气管哮喘;呼吸衰竭 | E97: 番禺区中心医院 | F97: 10,204.16 | G97: 5,098.27 | H97: 5,098.27 | I97: 4,996.30
A98: 96 | B98: 38岁 | C98: 男 | D98: 肛门和直肠出血;高尿酸血症;低钾血症 | E98: 番禺区中心医院 | F98: 2,404.32 | G98: 1,904.32 | H98: 1,904.32 | I98: 1,866.23
A99: 97 | B99: 70岁 | C99: 男 | D99: 慢性阻塞性肺疾病急性加重;慢性支气管炎;肺气肿;心功能不全 | E99: 番禺区中心医院 | F99: 1,827.73 | G99: 514.30 | H99: 514.30 | I99: 504.01
A100: 98 | B100: 49岁 | C100: 女 | D100: 颅脑外伤; 软组织损伤 | E100: 番禺区中心医院 | F100: 1,559.57 | G100: 1,359.57 | H100: 1,138.85 | I100: 1,116.07
A101: 99 | B101: 58岁 | C101: 男 | D101: 急性脑梗死 ;高血压 | E101: 番禺区中心医院 | F101: 1,399.14 | G101: 899.14 | H101: 734.48 | I101: 719.79
A102: 100 | B102: 43岁 | C102: 女 | D102: 头部部位的浅表损伤;惊恐发作;软组织挫裂伤 | E102: 番禺区中心医院 | F102: 1,656.63 | G102: 656.63 | H102: 656.63 | I102: 643.50
A103: 101 | B103: 43岁 | C103: 男 | D103: 慢性肾衰竭;心功能不全;高血压3级 | E103: 番禺区中心医院 | F103: 10,336.42 | G103: 6,887.89 | H103: 6,887.89 | I103: 6,750.13
A104: 102 | B104: 32岁 | C104: 女 | D104: 下肢深静脉血栓形成;发热 | E104: 番禺区中心医院 | F104: 74,383.76 | G104: 66,145.14 | H104: 62,912.68 | I104: 61,654.43
A105: 103 | B105: 52岁 | C105: 男 | D105: 急性阑尾炎;慢性阻塞性肺病肺部感染;肺源性心脏病 | E105: 番禺区中心医院 | F105: 9,822.02 | G105: 5,298.37 | H105: 4,723.28 | I105: 4,628.81
A106: 104 | B106: 43岁 | C106: 男 | D106: 肺结核;糖尿病; | E106: 番禺区中心医院 | F106: 6,927.01 | G106: 6,427.01 | H106: 6,427.01 | I106: 6,298.47
A107: 105 | B107: 24岁 | C107: 女 | D107: 肺炎;血容量不足性休克;心功能不全;孕<5周 | E107: 番禺区中心医院 | F107: 7,446.34 | G107: 6,437.53 | H107: 6,272.25 | I107: 6,146.81
A108: 106 | B108: 27岁 | C108: 男 | D108: 跟骨骨折;特发性脊柱侧弯 | E108: 番禺区中心医院 | F108: 3,590.36 | G108: 2,288.98 | H108: 1,674.42 | I108: 1,640.93
A109: 107 | B109: 52岁 | C109: 男 | D109: 糖尿病酮症酸中毒;高渗性昏迷;血容量不足性休克;高钠血症;高氯血症 | E109: 番禺区中心医院 | F109: 13,486.72 | G109: 10,002.70 | H109: 10,002.70 | I109: 9,802.65
A110: 108 | B110: 21岁 | C110: 女 | D110: 杀鼠剂中毒;高尿酸血症;过敏性皮炎 | E110: 番禺区中心医院 | F110: 8,228.47 | G110: 3,728.47 | H110: 3,728.47 | I110: 3,653.90
A111: 109 | B111: 57岁 | C111: 男 | D111: 肺恶性肿瘤;肺部感染;胸腔积液 | E111: 番禺区中心医院 | F111: 3,491.47 | G111: 491.47 | H111: 491.47 | I111: 481.64
A112: 110 | B112: 40岁 | C112: 男 | D112: 高血压;急性脑卒中 | E112: 番禺区中心医院 | F112: 2,208.12 | G112: 2,208.12 | H112: 2,208.12 | I112: 2,163.96
A113: 111 | B113: 49岁 | C113: 男 | D113: 多个部位烧伤50-59%，三度面积<10%(头面颈、双上肢、双下肢、右躯干、右臀) | E113: 番禺区中心医院 | F113: 16,472.49 | G113: 16,472.49 | H113: 12,748.52 | I113: 12,493.55
A114: 112 | B114: 28岁 | C114: 女 | D114: 心包积液(大量)、心包填塞 、纵隔肿物(纵隔恶性肿瘤?)、孕11周 | E114: 番禺区中心医院 | F114: 14,335.63 | G114: 13,335.63 | H114: 12,751.08 | I114: 12,496.06
A115: 113 | B115: 49岁 | C115: 男 | D115: 巨幼红细胞性贫、血感染性发热、急性尿潴留、全身多处皮肤擦伤 | E115: 番禺区中心医院 | F115: 8,308.28 | G115: 3,565.18 | H115: 3,565.18 | I115: 3,493.88
A116: 114 | B116: 32岁 | C116: 女 | D116: 取除下腔静脉滤器;下肢深静脉血栓形成 | E116: 番禺区中心医院 | F116: 18,885.90 | G116: 3,374.22 | H116: 3,374.22 | I116: 3,306.74
A117: 115 | B117: 54岁 | C117: 男 | D117: 急性ST段抬高型广泛前壁心肌梗死 | E117: 番禺区中心医院 | F117: 15,060.48 | G117: 10,159.40 | H117: 10,159.40 | I117: 9,956.21
A118: 116 | B118: 39岁 | C118: 男 | D118: 急性胰腺炎(水肿性) 、胆囊结石 | E118: 番禺区中心医院 | F118: 32,344.66 | G118: 7,284.14 | H118: 6,669.73 | I118: 6,536.34
A119: 117 | B119: 21岁 | C119: 女 | D119: 中枢神经系统感染;难治性癫痫持续状态;脓毒性休克;多器官功能障碍综合症(MODS);脓毒性心肌炎;急性心力衰竭;呼吸心跳骤停 | E119: 番禺区中心医院 | F119: 114,219.14 | G119: 113,219.14 | H119: 103,072.74 | I119: 101,011.29
A120: 118 | B120: 51岁 | C120: 女 | D120: 甲状腺危象;甲状腺功能亢进症;甲状腺功能亢进伴心脏病;多器官功能障碍综合症(MODS) | E120: 番禺区中心医院 | F120: 58,809.68 | G120: 31,825.72 | H120: 31,825.72 | I120: 31,189.21
A121: 119 | B121: 64岁 | C121: 男 | D121: 充血性心力衰竭;扩张型心肌病;高血压病3级(极高危);冠状动脉粥样硬化性心脏病 | E121: 番禺区中心医院 | F121: 11,363.68 | G121: 11,095.13 | H121: 11,095.13 | I121: 10,873.23
A122: 120 | B122: 56岁 | C122: 男 | D122: 结核性脑脊髓膜炎;高血压;肺结核 | E122: 番禺区中心医院 | F122: 15,208.86 | G122: 6,697.78 | H122: 6,697.78 | I122: 6,563.82
A123: 121 | B123: 52岁 | C123: 男 | D123: 脓毒症;肺部感染;肺水肿;胸腔积液;尺桡关节脱位;尺骨骨折 | E123: 番禺区中心医院 | F123: 6,262.12 | G123: 6,262.12 | H123: 6,036.04 | I123: 5,915.32
A124: 122 | B124: 52岁 | C124: 男 | D124: 肝硬化失代偿期;慢性肝衰竭;肺部感染 | E124: 番禺区中心医院 | F124: 7,048.62 | G124: 4,604.90 | H124: 4,604.90 | I124: 4,512.80
A125: 123 | B125: 70岁 | C125: 男 | D125: 急性脑血管意外;高血压 | E125: 番禺区中心医院 | F125: 2,796.21 | G125: 1,804.41 | H125: 1,804.41 | I125: 1,768.32
A126: 124 | B126: 41岁 | C126: 男 | D126: 2型糖尿病酮症酸中毒;急性肾损伤;肺炎症 | E126: 番禺区中心医院 | F126: 11,055.49 | G126: 3,891.39 | H126: 3,891.39 | I126: 3,813.56
A127: 125 | B127: 52岁 | C127: 男 | D127: 慢性肾衰竭;异体肾移植状态;高血压;慢性肾炎综合征 | E127: 番禺区中心医院 | F127: 2,699.01 | G127: 877.26 | H127: 877.26 | I127: 859.71
A128: 126 | B128: 59岁 | C128: 男 | D128: 慢性肾衰竭;高钾血症;高血压 | E128: 番禺区中心医院 | F128: 4,116.92 | G128: 850.64 | H128: 850.64 | I128: 833.63
A129: 127 | B129: 52岁 | C129: 男 | D129: 蛛网膜下腔出血;枕叶出血 | E129: 番禺区中心医院 | F129: 2,433.38 | G129: 533.38 | H129: 533.38 | I129: 522.71
A130: 128 | B130: 69岁 | C130: 男 | D130: 急性上消化道出血;急性左心衰竭 | E130: 番禺区中心医院 | F130: 5,209.39 | G130: 5,209.39 | H130: 4,600.17 | I130: 4,508.17
A131: 129 | B131: 53 | C131: 男 | D131: 失血性休克 多处损伤 骨盆骨折 创伤性脑出血 | E131: 南方医院增城分院 | F131: 11,767.35 | G131: 11,767.35 | H131: 11,582.15 | I131: 11,350.51
A132: 130 | B132: 42 | C132: 女 | D132: 损伤 创伤性蛛网膜下腔出血 | E132: 南方医院增城分院 | F132: 2,272.81 | G132: 2,272.81 | H132: 2,061.71 | I132: 2,020.48
A133: 131 | B133: 44 | C133: 男 | D133: 2型糖尿病性酮症酸中毒并昏迷 感染性休克 | E133: 南方医院增城分院 | F133: 6,990.21 | G133: 6,990.21 | H133: 6,775.21 | I133: 6,639.71
A134: 132 | B134: 46 | C134: 男 | D134: 急性脑血管病（脑梗死） | E134: 南方医院增城分院 | F134: 2,324.85 | G134: 2,324.85 | H134: 2,324.85 | I134: 2,278.35
A135: 133 | B135: 60 | C135: 女 | D135: 损伤 创伤性脑出血 多处挫伤 | E135: 南方医院增城分院 | F135: 5,517.18 | G135: 5,517.18 | H135: 5,306.08 | I135: 5,199.96
A136: 134 | B136: 61 | C136: 男 | D136: 损伤 多处损伤 创伤性脑出血 创伤性蛛网膜下腔出血 液气胸 | E136: 南方医院增城分院 | F136: 5,229.84 | G136: 5,229.84 | H136: 5,044.64 | I136: 4,943.75
A137: 135 | B137: 51 | C137: 女 | D137: 头部损伤 腹部损伤 创伤性蛛网膜下腔出血 | E137: 南方医院增城分院 | F137: 3,321.37 | G137: 3,321.37 | H137: 3,158.17 | I137: =H137*0.98 -> 3,095.01
A138: 136 | B138: 57 | C138: 男 | D138: 胸部损伤 | E138: 南方医院增城分院 | F138: 472.00 | G138: 472.00 | H138: 472.00 | I138: 462.56
A139: 137 | B139: 57 | C139: 男 | D139: 急性脑血管病 高血压 | E139: 南方医院增城分院 | F139: 752.00 | G139: 752.00 | H139: 752.00 | I139: 736.96
A140: 138 | B140: 72 | C140: 女 | D140: 头晕 急性脑血管病？ | E140: 南方医院增城分院 | F140: 714.00 | G140: 714.00 | H140: 714.00 | I140: 699.72
A141: 139 | B141: 52 | C141: 男 | D141: 急性脑血管病 | E141: 南方医院增城分院 | F141: 3,548.08 | G141: 3,548.08 | H141: 3,548.08 | I141: 3,477.12
A142: 140 | B142: 46 | C142: 男 | D142: 损伤 创伤性蛛网膜下腔出血 | E142: 南方医院增城分院 | F142: 2,595.15 | G142: 2,595.15 | H142: 2,595.15 | I142: 2,543.25
A143: 141 | B143: 29岁 | C143: 女 | D143: 感染性休克 | E143: 南方医院增城分院 | F143: 290,526.08 | G143: 57,839.40 | H143: 57,576.58 | I143: 56,425.05
A144: 142 | B144: 35岁 | C144: 男 | D144: 右手部指伸肌腱损伤 | E144: 南方医院增城分院 | F144: 10,013.47 | G144: 3,752.76 | H144: 3,663.76 | I144: 3,590.48
A145: 143 | B145: 7天 | C145: 女 | D145: 新生儿肺炎 | E145: 南方医院增城分院 | F145: 9,487.07 | G145: 5,987.07 | H145: 5,429.92 | I145: 5,321.32
A146: 144 | B146: 2天 | C146: 男 | D146: 胎儿和新生儿受母体情况的影响（母体铁缺乏） | E146: 南方医院增城分院 | F146: 1,054.94 | G146: 1,054.94 | H146: 682.54 | I146: 668.89
A147: 145 | B147: 55 | C147: 女 | D147: 肝硬化并食管胃底静脉曲张破裂出血 | E147: 南方医院增城分院 | F147: 109,212.71 | G147: 86,212.71 | H147: 85,875.05 | I147: 84,157.55
A148: 146 | B148: 40 | C148: 男 | D148: 肝细胞癌 | E148: 南方医院增城分院 | F148: 34,001.35 | G148: 5,205.68 | H148: 4,996.71 | I148: 4,896.78
A149: 147 | B149: 56 | C149: 男 | D149: 肝硬化失代偿期、急性胃溃疡出血 | E149: 南方医院增城分院 | F149: 29,457.44 | G149: 16,354.19 | H149: 13,925.43 | I149: 13,646.92
A150: 148 | B150: 53岁 | C150: 男 | D150: 急性ST段抬高型心肌梗死（下壁） | E150: 南方医院增城分院 | F150: 25,023.71 | G150: 23,557.04 | H150: 23,297.70 | I150: 22,831.75
A151: 149 | B151: 38岁 | C151: 女 | D151: 皮肤裂伤 | E151: 南方医院增城分院 | F151: 14,787.60 | G151: 11,787.60 | H151: 11,536.99 | I151: 11,306.25
A152: 150 | B152: 45 | C152: 男 | D152: 呼吸困难 支气管哮喘（？） | E152: 南方医院增城分院 | F152: 280.25 | G152: 280.25 | H152: 280.25 | I152: 274.65
A153: 151 | B153: 50 | C153: 男 | D153: 急性脑血管病（脑出血） | E153: 南方医院增城分院 | F153: 2,187.09 | G153: 2,187.09 | H153: 2,187.09 | I153: 2,143.35
A154: 152 | B154: 38 | C154: 女 | D154: 头部的损伤 | E154: 南方医院增城分院 | F154: 397.00 | G154: 397.00 | H154: 397.00 | I154: 389.06
A155: 153 | B155: 31 | C155: 男 | D155: 癫痫样发作 糖尿病 | E155: 南方医院增城分院 | F155: 2,340.67 | G155: 2,340.67 | H155: 2,340.67 | I155: 2,293.86
A156: 154 | B156: 47 | C156: 男 | D156: 多处损伤 | E156: 南方医院增城分院 | F156: 644.58 | G156: 644.58 | H156: 644.58 | I156: 631.69
A157: 155 | B157: 54 | C157: 女 | D157: 创伤性蛛网膜下腔出血 多处损伤 | E157: 南方医院增城分院 | F157: 5,009.26 | G157: 5,009.26 | H157: 5,009.26 | I157: 4,909.07
A158: 156 | B158: 77 | C158: 男 | D158: 急性脑血管病 | E158: 南方医院增城分院 | F158: 639.09 | G158: 639.09 | H158: 639.09 | I158: 626.31
A159: 157 | B159: 55 | C159: 男 | D159: 昏迷 糖尿病性酮症酸中毒并昏迷 | E159: 南方医院增城分院 | F159: 28,883.32 | G159: 28,883.32 | H159: 28,883.32 | I159: 28,305.65
A160: 158 | B160: 57 | C160: 男 | D160: 多处损伤 脑挫伤 创伤性蛛网膜下腔出血 | E160: 南方医院增城分院 | F160: 2,530.88 | G160: 2,530.88 | H160: 2,530.88 | I160: 2,480.26
A161: 159 | B161: 48 | C161: 男 | D161: 胸痛 急性冠脉综合征 | E161: 南方医院增城分院 | F161: 1,683.41 | G161: 1,683.41 | H161: 1,683.41 | I161: 1,649.74
A162: 160 | B162: 69 | C162: 男 | D162: 脑梗死 | E162: 南方医院增城分院 | F162: 906.75 | G162: 906.75 | H162: 906.75 | I162: 888.62
A163: 161 | B163: 56 | C163: 男 | D163: 多处损伤 头部的损伤 | E163: 南方医院增城分院 | F163: 376.00 | G163: 376.00 | H163: 376.00 | I163: 368.48
A164: 162 | B164: 49 | C164: 男 | D164: 损伤 （左锁骨骨折） | E164: 南方医院增城分院 | F164: 1,455.46 | G164: 1,455.46 | H164: 1,455.46 | I164: 1,426.35
A165: 163 | B165: 32 | C165: 女 | D165: 多处损伤 创伤性蛛网膜下腔出血（待排） | E165: 南方医院增城分院 | F165: 3,018.05 | G165: 3,018.05 | H165: 3,018.05 | I165: 2,957.69
A166: 164 | B166: 56 | C166: 男 | D166: 急性脑血管病 高血压3级 | E166: 南方医院增城分院 | F166: 1,265.65 | G166: 1,265.65 | H166: 1,265.65 | I166: 1,240.34
A167: 165 | B167: 53 | C167: 男 | D167: 腰疼 （右侧）肢体麻木 | E167: 南方医院增城分院 | F167: 3,186.81 | G167: 3,186.81 | H167: 3,186.81 | I167: 3,123.07
A168: 166 | B168: 54 | C168: 男 | D168: 多处损伤肺挫伤 | E168: 南方医院增城分院 | F168: 8,579.65 | G168: 8,579.65 | H168: 8,579.65 | I168: 8,408.06
A169: 167 | B169: 57 | C169: 女 | D169: 多处损伤 骨盆骨折 失血性休克 | E169: 南方医院增城分院 | F169: 5,053.85 | G169: 5,053.85 | H169: 5,053.85 | I169: 4,952.77
A170: 168 | B170: 33 | C170: 男 | D170: 多处损伤 | E170: 南方医院增城分院 | F170: 8,089.25 | G170: 8,089.25 | H170: 8,089.25 | I170: 7,927.47
A171: 169 | B171: 59 | C171: 男 | D171: 消化道穿孔 腹膜炎 | E171: 南方医院增城分院 | F171: 1,361.78 | G171: 1,361.78 | H171: 1,361.78 | I171: 1,334.54
A172: 170 | B172: 54 | C172: 男 | D172: 头晕 急性脑血管病（？） | E172: 南方医院增城分院 | F172: 414.60 | G172: 414.60 | H172: 414.60 | I172: 406.31
A173: 171 | B173: 39 | C173: 男 | D173: 多处损伤；左胫腓骨近端骨折 | E173: 南方医院增城分院 | F173: 21,065.00 | G173: 1,575.67 | H173: 1,153.34 | I173: 1,130.27
A174: 172 | B174: 50 | C174: 男 | D174: 急性脑血管病 | E174: 南方医院增城分院 | F174: 119,509.82 | G174: 116,361.76 | H174: 93,361.76 | I174: 91,494.52
A175: 173 | B175: 45 | C175: 男 | D175: 农药中毒（敌敌畏中毒？） | E175: 南方医院增城分院 | F175: 61,604.85 | G175: 48,317.86 | H175: 26,402.07 | I175: 25,874.03
A176: 174 | B176: 47岁 | C176: 女 | D176: 1.上消化道穿孔 2.感染性休克 3.凝血功能异常 4.高钾血症 5.肾功能不全 6.上消化道出血 | E176: 南方医院白云分院 | F176: 3,499.78 | G176: 3,478.58 | H176: 3,478.58 | I176: =H176*0.98 -> 3,409.01
A177: 175 | B177: 51岁 | C177: 男 | D177: 1.脑梗死 2.鼻咽恶性肿瘤个人史 3.高血压病3级（高危） | E177: 南方医院白云分院 | F177: 5,464.42 | G177: 1,242.05 | H177: 1,242.05 | I177: 1,217.21
A178: 176 | B178: 34岁 | C178: 女 | D178: 1.全身多处骨折 2.失血性贫血 | E178: 南方医院白云分院 | F178: 6,367.89 | G178: 6,245.29 | H178: 6,245.29 | I178: 6,120.38
A179: 177 | B179: 22岁 | C179: 男 | D179: 1.腹泻 | E179: 南方医院白云分院 | F179: 234.01 | G179: 234.01 | H179: 234.01 | I179: 229.33
A180: 178 | B180: 40岁 | C180: 男 | D180: 1.猝死 | E180: 南方医院白云分院 | F180: 571.66 | G180: 427.43 | H180: 427.43 | I180: 418.88
A181: 179 | B181: 37岁 | C181: 女 | D181: 1.晕厥 | E181: 南方医院白云分院 | F181: 2,458.53 | G181: 2,425.98 | H181: 2,425.98 | I181: 2,377.46
A182: 180 | B182: 40岁 | C182: 女 | D182: 1.头晕 | E182: 南方医院白云分院 | F182: 961.92 | G182: 873.61 | H182: 873.61 | I182: 856.14
A183: 181 | B183: 53岁 | C183: 男 | D183: 1.谵妄性躁狂症 2.横纹肌溶解症 | E183: 南方医院白云分院 | F183: 2,047.80 | G183: 2,047.80 | H183: 2,047.80 | I183: 2,006.84
A184: 182 | B184: 15岁 | C184: 女 | D184: 1.支气管哮喘(急性发作期) | E184: 南方医院白云分院 | F184: 10,890.63 | G184: 1,786.04 | H184: 1,786.04 | I184: 1,750.32
A185: 183 | B185: 46岁 | C185: 女 | D185: 1.阵发性心房扑动 2.偶发房室性期前收缩 3.精神病个人史 | E185: 南方医院白云分院 | F185: 5,469.72 | G185: 4,602.44 | H185: 4,602.44 | I185: 4,510.39
A186: 184 | B186: 52岁 | C186: 男 | D186: 1.癫痫持续状态 2.2型糖尿病 3.高血压病3级（极高危） 4.肺部感染 | E186: 南方医院白云分院 | F186: 117,673.00 | G186: 7,881.01 | H186: 7,881.01 | I186: 7,723.39
A187: 185 | B187: 55岁 | C187: 男 | D187: 1.胸痛（右侧肋骨可疑骨折） 2.高血压3级 3.肾结石 4.肝内胆管结石 5.颈动脉硬化 | E187: 南方医院白云分院 | F187: 12,173.03 | G187: 5,609.60 | H187: 5,609.60 | I187: 5,497.41
A188: 186 | B188: 47岁 | C188: 男 | D188: 1.心力衰竭 2.急性前壁心肌梗死 3.肺部感染 4.Ⅱ型呼吸衰竭 5.高血压3级（极高危组） 6.糖尿病待排？ | E188: 南方医院白云分院 | F188: 12,679.18 | G188: 4,480.45 | H188: 4,480.45 | I188: 4,390.84
A189: 187 | B189: 47岁 | C189: 女 | D189: 1.骨盆骨折 左侧髂骨体、髋臼骨折；双侧耻骨下支骨折 2.右侧肩胛骨粉碎性骨折 3.肾挫伤 4.贫血 5.甲状腺功能亢进症 | E189: 南方医院白云分院 | F189: 33,418.32 | G189: 7,169.95 | H189: 7,169.95 | I189: 7,026.55
A190: 188 | B190: 47岁 | C190: 女 | D190: 1.消化道穿孔 2.感染性休克 3.弥漫性腹膜炎 4.多脏器功能衰竭（肾衰竭、肝衰竭、心力衰竭、呼吸衰竭） 5.弥散性血管内凝血 6.电解质紊乱 7.代谢性酸中毒 8.低血糖 9.上消化道出血 10.中度贫血 11.血小板减少 12.低蛋白血症 | E190: 南方医院白云分院 | F190: 93,174.64 | G190: 71,538.70 | H190: 71,538.70 | I190: 70,107.93
A191: 189 | B191: 34岁 | C191: 女 | D191: 1.骨盆骨折 2.肋骨骨折 3.腹膜后血肿 4.胸骨骨折 5.桡骨骨折（左桡骨骨折） 6.跟骨骨折（左跟骨骨折） 7.肾挫伤 8.贫血 | E191: 南方医院白云分院 | F191: 127,861.11 | G191: 22,587.77 | H191: 22,587.77 | I191: 22,136.01
A192: 190 | B192: 48岁 | C192: 男 | D192: 1.发热(恶性疟疾) 2. 2型糖尿病伴有并发症 | E192: 南方医院白云分院 | F192: 1,027.67 | G192: 622.83 | H192: 622.83 | I192: 610.37
A193: 191 | B193: 35岁 | C193: 女 | D193: 1.输卵管妊娠（左侧输卵管妊娠破裂出血） 2.急性失血性贫血（轻度） 3.腹腔粘连 4.女性盆腔粘连 | E193: 南方医院白云分院 | F193: 9,313.22 | G193: 7,815.22 | H193: 7,815.22 | I193: 7,658.92
A194: 192 | B194: 1天 | C194: 女 | D194: 1.高危儿（新生儿感染、母亲GBS感染并缺铁性贫血） 2.新生儿脐带绕颈 3.卡介苗超深超量接种 | E194: 南方医院白云分院 | F194: 4,235.01 | G194: 4,123.53 | H194: 4,123.53 | I194: 4,041.06
A195: 193 | B195: 31岁 | C195: 女 | D195: 1.妊娠期糖尿病 2.先兆早产（孕2产1宫内单胎妊娠32+1周ROA） 3.胎儿生长发育迟缓 4.妊娠合并子宫肌瘤 5.脐带绕颈 6.不良孕产个人史（早产史） 7.高危妊娠监督 | E195: 南方医院白云分院 | F195: 6,514.84 | G195: 4,075.40 | H195: 4,075.40 | I195: 3,993.89
A196: 194 | B196: 40岁 | C196: 男 | D196: 1.完全性右束支传导阻滞2.低钾血症3.完全性右束支传导阻滞4.低钾血症5.胸痛6.高脂血症 | E196: 南方医院白云分院 | F196: 12,163.75 | G196: 2,133.98 | H196: 2,133.98 | I196: 2,091.30
A197: 195 | B197: 52岁 | C197: 男 | D197: 1.贫血2.全血细胞减少3.全血细胞减少4.休克(低血量性休克)5.消化道出血6.电解质紊乱 | E197: 南方医院白云分院 | F197: 68,730.50 | G197: 60,371.22 | H197: 60,371.22 | I197: 59,163.80
A198: 196 | B198: 68岁 | C198: 女 | D198: 1.腹痛2.阑尾炎3.胆囊炎4.糖尿病伴有多个并发症,其他特指的5.肾功能不全6.血小板减少7.心功能不全8.感染性休克9.感染性休克10.胆囊炎11.阑尾炎12.肾功能不全13.心功能不全14.糖尿病伴有多个并发症,其他特指的15.血小板减少16.恙虫病立克次体引起的斑疹伤寒17.肝功能不全18.凝血功能障碍19.循环衰竭20.呼吸衰竭21.重症肺炎22.癫痫23.高氨血症 | E198: 南方医院白云分院 | F198: 41,442.48 | G198: 14,855.98 | H198: 14,855.98 | I198: 14,558.86
A199: 197 | B199: 34岁 | C199: 女 | D199: 1.骨盆骨折2.抑郁状态3.腹膜后血肿4.肝功能不全5.胸骨骨折6.肋骨骨折7.肾挫伤8.桡骨骨折(左桡骨骨折)9.跟骨骨折(左跟骨骨折)10.自杀企图史11.轻度贫血12.骨折病13.气滞血瘀证14.骨盆骨折15.胸骨骨折16.肋骨骨折17.桡骨骨折(左桡骨骨折)18.跟骨骨折(左跟骨骨折)19.腹膜后血肿20.轻度贫血21.肝功能不全22.肾挫伤23.抑郁状态24.自杀企图史 | E199: 南方医院白云分院 | F199: 14,316.39 | G199: 1,068.06 | H199: 1,068.06 | I199: 1,046.70
A200: 198 | B200: 44岁 | C200: 男 | D200: 1.横纹肌溶解症(？)2.代谢性酸中毒3.血小板减少4.多脏器功能衰竭(肝肾功、凝血功能)5.肺部感染6.乙型病毒性肝炎7.头皮擦伤8.感染性休克9.多脏器功能衰竭(肝肾功、凝血功能 查因)10.横纹肌溶解症11.代谢性酸中毒12.血小板减少13.肺部感染14.乙型病毒性肝炎15.头皮擦伤16.感染性休克17.呼吸衰竭18.循环衰竭19.肝肾功能衰竭20.凝血功能障碍21.高胆红素血症22.高氨血症23.高尿酸血症 | E200: 南方医院白云分院 | F200: 262,725.91 | G200: 70,221.81 | H200: 70,221.81 | I200: 68,817.37
... 849 more rows
